fUST/lending_fUST_20240323
["ID","MTS","AMOUNT","RATE_DAILY","PERIOD"]
[320073807,1711137040511,-500.0,0.00024657,2]
[320073808,1711137040520,-500.0,0.00024657,2]
[320073809,1711137040529,-500.0,0.00024657,2]
[320073810,1711137040538,-500.0,0.00024657,2]
[320073811,1711137040547,-500.0,0.00024657,2]
[320073812,1711137040555,-3520.98,0.00024657,2]
[320073813,1711137040564,-500.0,0.00024657,2]
[320073814,1711137040573,-1042.94,0.00024657,2]
[320073815,1711137040582,-527.71,0.00024657,2]
[320073816,1711137040591,-500.0,0.00024657,2]
[320073817,1711137040600,-21063.86,0.00024657,2]
[320073818,1711137040609,-500.0,0.00024657,2]
[320073819,1711137040618,-1106.95,0.00024657,2]
[320073820,1711137040627,-500.0,0.00024657,2]
[320073821,1711137040638,-500.0,0.00024657,2]
[320073822,1711137040647,-500.0,0.00024657,2]
[320073823,1711137040656,-500.0,0.00024657,2]
[320073824,1711137040666,-500.0,0.00024657,2]
[320073825,1711137040675,-7375.34,0.00024657,2]
[320073826,1711137040684,-500.0,0.00024657,2]
[320073827,1711137040694,-1543.36,0.00024657,2]
[320073828,1711137040703,-24729.33,0.00024657,2]
[320073829,1711137040712,-500.62140895,0.00024657,2]
[320073830,1711137040722,-500.0,0.00024657,2]
[320073831,1711137040732,-24900.0,0.00024874,2]
[320073832,1711137040741,-500.0,0.00024999,2]
[320073833,1711137040751,-500.0,0.00024999,2]
[320073834,1711137040761,-161.4575979,0.00025073,2]
[320073835,1711137040771,-683.26554427,0.00025105,2]
[320073836,1711137040780,-500.0,0.00025205,2]
[320073837,1711137040789,-500.0,0.00025205,2]
[320073838,1711137040798,-584.34,0.00025205,2]
[320073839,1711137040808,-624.989434,0.00025205,2]
[320073840,1711137040818,-500.0,0.00025205,2]
[320073841,1711137040828,-500.0,0.00025205,2]
[320073842,1711137040838,-500.0,0.00025205,2]
[320073843,1711137040847,-500.0,0.00025205,2]
[320073844,1711137040857,-451.72585333,0.00025205,2]
[320073845,1711137040866,-892.1,0.00025205,2]
[320073846,1711137040875,-500.0,0.00025205,2]
[320073847,1711137040886,-500.0,0.00025205,2]
[320073848,1711137040896,-500.0,0.00025205,2]
[320073849,1711137040906,-353.12306953,0.00025205,2]
[320073850,1711137040915,-500.0,0.00025205,2]
[320073851,1711137040924,-500.0,0.00025205,2]
[320073852,1711137040933,-500.37151895,0.00025205,2]
[320073853,1711137040943,-583.7,0.00025205,2]
[320073854,1711137040953,-390.72477065,0.00025205,2]
[320073855,1711137040962,-499.8305,0.00025205,2]
[320073856,1711137040971,-733.27,0.00025205,2]
[320073857,1711137040980,-500.0,0.00025205,2]
[320073858,1711137040989,-500.0,0.00025205,2]
[320073859,1711137040998,-500.0,0.00025205,2]
[320073860,1711137041007,-500.0,0.00025205,2]
[320073861,1711137041016,-500.0,0.00025205,2]
[320073862,1711137041025,-500.0,0.00025205,2]
[320073863,1711137041034,-500.0,0.00025205,2]
[320073864,1711137041043,-500.0,0.00025205,2]
[320073865,1711137041052,-500.0,0.00025205,2]
[320073866,1711137041061,-2553.7,0.00025205,2]
[320073867,1711137041070,-500.0,0.00025205,2]
[320073868,1711137041079,-500.0,0.00025205,2]
[320073869,1711137041089,-500.0,0.00025205,2]
[320073870,1711137041098,-500.0,0.00025205,2]
[320073871,1711137041107,-719.98,0.00025205,2]
[320073872,1711137041116,-500.0,0.00025205,2]
[320073873,1711137041125,-500.0,0.00025205,2]
[320073874,1711137041137,-500.0,0.00025205,2]
[320073875,1711137041146,-500.0,0.00025205,2]
[320073876,1711137041155,-500.0,0.00025205,2]
[320073877,1711137041165,-1412.48,0.00025205,2]
[320073878,1711137041174,-500.0,0.00025205,2]
[320073879,1711137041183,-500.0,0.00025205,2]
[320073880,1711137041192,-500.0,0.00025205,2]
[320073881,1711137041202,-405.92032026,0.00025205,2]
[320073882,1711137041211,-500.0,0.00025205,2]
[320073883,1711137041221,-500.0,0.00025205,2]
[320073884,1711137041231,-500.0,0.00025205,2]
[320073885,1711137041241,-500.0,0.00025205,2]
[320073886,1711137041251,-500.0,0.00025205,2]
[320073887,1711137041260,-538.46,0.00025205,2]
[320073888,1711137041269,-500.0,0.00025205,2]
[320073889,1711137041278,-1680.12,0.00025205,2]
[320073890,1711137041288,-1444.35,0.00025205,2]
[320073891,1711137041297,-2465.47,0.00025205,2]
[320073892,1711137041305,-500.0,0.00025205,2]
[320073893,1711137041314,-504.7,0.00025205,2]
[320073894,1711137041325,-1560.4,0.00025205,2]
[320073895,1711137041334,-629.56,0.00025205,2]
[320073896,1711137041342,-1065.06,0.00025205,2]
[320073897,1711137041351,-500.0,0.00025205,2]
[320073898,1711137041360,-16156.79,0.00025205,2]
[320073899,1711137041370,-3025.63,0.00025205,2]
[320073900,1711137041379,-500.0,0.00025205,2]
[320073901,1711137041390,-1232.98,0.00025205,2]
[320073902,1711137041401,-1652.49,0.00025205,2]
[320073903,1711137041411,-1730.51,0.00025205,2]
[320073904,1711137041421,-2039.28,0.00025205,2]
[320073905,1711137041430,-500.0,0.00025205,2]
[320073906,1711137041442,-500.0,0.00025205,2]
[320073907,1711137041452,-500.0,0.00025205,2]
[320073908,1711137041461,-16654.06,0.00025205,2]
[320073909,1711137041470,-582.75,0.00025205,2]
[320073910,1711137041479,-1152.96,0.00025205,2]
[320073911,1711137041488,-504.88,0.00025205,2]
[320073912,1711137041498,-500.0,0.00025205,2]
[320073913,1711137041506,-500.0,0.00025205,2]
[320073914,1711137041516,-500.0,0.00025205,2]
[320073915,1711137041525,-3862.94,0.00025205,2]
[320073916,1711137041534,-500.0,0.00025205,2]
[320073917,1711137041544,-257.5723004,0.00025205,2]
[320073918,1711137041553,-875.9,0.00025205,2]
[320073919,1711137041562,-500.0,0.00025205,2]
[320073920,1711137041580,-1390.16,0.00025205,2]
[320073921,1711137041593,-500.0,0.00025205,2]
[320073922,1711137041603,-500.0,0.00025205,2]
[320073923,1711137041614,-17405.76,0.00025205,2]
[320073924,1711137041624,-2729.43,0.00025205,2]
[320073925,1711137041635,-500.0,0.00025205,2]
[320073926,1711137041645,-500.0,0.00025205,2]
[320073927,1711137041655,-500.0,0.00025205,2]
[320073928,1711137041664,-500.0,0.00025205,2]
[320073929,1711137041675,-500.0,0.00025205,2]
[320073930,1711137041685,-500.0,0.00025205,2]
[320073931,1711137041695,-3520.98,0.00025205,2]
[320073932,1711137041705,-1042.94,0.00025205,2]
[320073933,1711137041715,-527.71,0.00025205,2]
[320073934,1711137041724,-21063.86,0.00025205,2]
[320073935,1711137041734,-1106.95,0.00025205,2]
[320073936,1711137041743,-500.0,0.00025205,2]
[320073937,1711137041753,-500.0,0.00025205,2]
[320073938,1711137041763,-500.0,0.00025205,2]
[320073939,1711137041772,-7375.34,0.00025205,2]
[320073940,1711137041782,-1543.36,0.00025205,2]
[320073941,1711137041791,-24729.33,0.00025205,2]
[320073942,1711137041801,-2465.7971665,0.00025502,2]
[320073943,1711137041810,-273341.83968692,0.00025602,2]
[320073975,1711137046225,-275.42113425,0.00024656,2]
[320073976,1711137046235,-500.0,0.00024657,2]
[320073977,1711137046247,-500.0,0.00024657,2]
[320073978,1711137046257,-500.0,0.00024657,2]
[320073979,1711137046267,-500.0,0.00024657,2]
[320073980,1711137046277,-500.0,0.00024657,2]
[320073981,1711137046288,-370.02171051,0.00024657,2]
[320073982,1711137046298,-1967.61186454,0.00025205,2]
[320073987,1711137046434,-500.0,0.00025205,2]
[320073989,1711137046444,-500.0,0.00025205,2]
[320073991,1711137046453,-157.12,0.00025205,2]
[320073993,1711137046462,-493.45466401,0.00025205,2]
[320073995,1711137046472,-500.0,0.00025205,2]
[320073997,1711137046480,-2658.16031308,0.00025602,2]
[320073999,1711137046490,-1000.0,0.00025653,2]
[320074001,1711137046499,-500.0,0.00025701,2]
[320074002,1711137046508,-275.44693861,0.00025701,2]
[320074014,1711137047061,-1.76964106,0.00025701,2]
[320074015,1711137047077,-222.78342033,0.00025701,2]
[320074016,1711137047087,-500.0,0.00025702,2]
[320074017,1711137047096,-500.0,0.00025702,2]
[320074018,1711137047105,-500.0,0.00025702,2]
[320074019,1711137047114,-500.0,0.00025702,2]
[320074020,1711137047123,-500.0,0.00025702,2]
[320074021,1711137047132,-500.0,0.00025702,2]
[320074022,1711137047143,-500.0,0.00025702,2]
[320074023,1711137047153,-500.0,0.00025702,2]
[320074024,1711137047162,-500.0,0.00025702,2]
[320074025,1711137047172,-500.0,0.00025702,2]
[320074026,1711137047181,-500.0,0.00025702,2]
[320074027,1711137047191,-500.0,0.00025702,2]
[320074028,1711137047201,-500.0,0.00025702,2]
[320074029,1711137047211,-500.0,0.00025702,2]
[320074030,1711137047221,-500.0,0.00025702,2]
[320074031,1711137047232,-500.0,0.00025702,2]
[320074032,1711137047245,-500.0,0.00025703,2]
[320074033,1711137047263,-500.0,0.00025703,2]
[320074034,1711137047273,-500.0,0.00025703,2]
[320074035,1711137047283,-500.0,0.00025703,2]
[320074036,1711137047293,-500.0,0.00025703,2]
[320074037,1711137047302,-500.0,0.00025703,2]
[320074038,1711137047312,-500.0,0.00025703,2]
[320074039,1711137047321,-500.0,0.00025703,2]
[320074040,1711137047331,-500.0,0.00025703,2]
[320074041,1711137047341,-500.0,0.00025703,2]
[320074042,1711137047350,-154.87609912,0.00025703,2]
[320074043,1711137047359,-500.0,0.00025703,2]
[320074044,1711137047368,-500.0,0.00025703,2]
[320074045,1711137047377,-429.7294776,0.00025703,2]
[320074050,1711137229758,2009.21861333,0.00017,2]
[320074051,1711137232052,20491.9126757,0.0002,2]
[320074054,1711137307663,154.98450155,0.0002,2]
[320074056,1711137327666,192.98709002,0.0002,2]
[320074064,1711138012373,707.05608852,0.000189,2]
[320074065,1711138035304,1404.0,0.0003561,120]
[320074066,1711138035325,1404.0,0.0003561,120]
[320074069,1711138093506,-211.13438057,0.0002098,2]
[320074070,1711138093531,-154.9690062,0.0002098,2]
[320074071,1711138093553,-154.9690062,0.0002098,2]
[320074072,1711138093577,-1692.19433508,0.00020981,2]
[320074073,1711138093597,-24900.0,0.00020982,2]
[320074074,1711138093797,-300.0,0.00020999,2]
[320074075,1711138093817,-9559.73327195,0.00021,2]
[320074143,1711138232722,-154.9690062,0.00020873,2]
[320074145,1711138232731,-210.16491797,0.00020874,2]
[320074147,1711138232741,-239.29822108,0.00020874,2]
[320074149,1711138232750,-322.61827325,0.00020874,2]
[320074151,1711138232760,-494.44138683,0.00020875,2]
[320074153,1711138232769,-3506.11948002,0.00020974,2]
[320074154,1711138232778,-377.87069237,0.00021,2]
[320074157,1711138232788,-195.83267534,0.00021,2]
[320074159,1711138232799,-164.349322,0.00021918,2]
[320074161,1711138232808,-157.59622062,0.00022044,2]
[320074163,1711138232817,-178.311833,0.00022045,2]
[320074165,1711138232827,-154.9690062,0.00022468,2]
[320074167,1711138232837,-691.92306,0.00022469,2]
[320074168,1711138232847,-329.4086607,0.00022595,2]
[320074171,1711138232858,-2000.0,0.00023548,2]
[320074173,1711138232869,-707.05608852,0.000239,2]
[320074174,1711138232879,-2000.0,0.00023918,2]
[320074177,1711138232889,-2000.0,0.00024287,2]
[320074178,1711138232899,-159.84517135,0.00024455,2]
[320074180,1711138232910,-159.84517134,0.00024456,2]
[320074183,1711138232919,-720.01937355,0.00024457,2]
[320074184,1711138232929,-336.61028602,0.00024463,2]
[320074186,1711138232938,-720.01937355,0.00024482,2]
[320074188,1711138232948,-720.01937355,0.00024507,2]
[320074191,1711138232958,-720.01937355,0.00024532,2]
[320074192,1711138232967,-500.0,0.00024554,2]
[320074195,1711138232979,-159.84906088,0.00024554,2]
[320074196,1711138232989,-500.0,0.00024554,2]
[320074198,1711138232998,-453.36334978,0.00024554,2]
[320074201,1711138233008,-270.08437833,0.00024554,2]
[320074202,1711138233017,-309.79863785,0.00024555,2]
[320074204,1711138233027,-240.35470573,0.00024555,2]
[320074207,1711138233037,-205.13492374,0.00024555,2]
[320074209,1711138233046,-222.69768656,0.00024555,2]
[320074211,1711138233055,-534.71774984,0.00024555,2]
[320074213,1711138233064,-304.78785734,0.00024555,2]
[320074214,1711138233074,-481.54389933,0.00024555,2]
[320074216,1711138233083,-1899.72787318,0.00024555,2]
[320074218,1711138233092,-3165.27704134,0.00024555,2]
[320074220,1711138233102,-354.65998098,0.00024555,2]
[320074223,1711138233114,-603.12853459,0.00024555,2]
[320074224,1711138233123,-82.0917049,0.00024555,2]
[320074227,1711138233135,-101.93798731,0.00024555,2]
[320074229,1711138233146,-187.16195734,0.00024555,2]
[320074230,1711138233157,-3227.16699608,0.00024555,2]
[320074232,1711138233168,-309.87609912,0.00024555,2]
[320074234,1711138233177,-176.14040003,0.00024555,2]
[320074236,1711138233187,-302.37627961,0.00024555,2]
[320074238,1711138233196,-1537.7459813,0.00024555,2]
[320074240,1711138233205,-195.40953696,0.00024555,7]
[320074242,1711138233215,-487.92325292,0.00024555,2]
[320074244,1711138233225,-243.88339783,0.00024555,2]
[320074247,1711138233235,-779.72077743,0.00024555,2]
[320074248,1711138233244,-180.24387413,0.00024555,2]
[320074251,1711138233254,-156.00342671,0.00024555,2]
[320074252,1711138233263,-255.75294514,0.00024555,2]
[320074254,1711138233272,-1621.82996488,0.00024555,2]
[320074256,1711138233283,-155.4665164,0.00024555,2]
[320074259,1711138233292,-155.2431605,0.00024555,2]
[320074261,1711138233302,-2603.55769932,0.00024555,2]
[320074263,1711138233312,-154.98450155,0.00024555,2]
[320074265,1711138233321,-17633.90154053,0.00024555,2]
[320074281,1711138233465,-500.0,0.00024554,2]
[320074283,1711138233475,-19339.15077213,0.00024555,2]
[320074285,1711138233484,-154.98450155,0.00024555,2]
[320074287,1711138233493,-154.98450155,0.00024555,2]
[320074289,1711138233502,-276000.0,0.00024557,2]
[320074291,1711138233512,-2465.7971665,0.00024557,2]
[320074293,1711138233521,-720.01937355,0.00024557,2]
[320074295,1711138233530,-876.45467613,0.00024656,2]
[320074297,1711138233539,-500.0,0.00024656,2]
[320074299,1711138233548,-500.0,0.00024656,2]
[320074301,1711138233556,-500.0,0.00024656,2]
[320074303,1711138233566,-500.0,0.00024656,2]
[320074305,1711138233575,-500.0,0.00024656,2]
[320074307,1711138233584,-500.0,0.00024656,2]
[320074309,1711138233593,-500.0,0.00024656,2]
[320074311,1711138233602,-500.0,0.00024657,2]
[320074313,1711138233613,-500.0,0.00024657,2]
[320074315,1711138233623,-500.43985307,0.00024657,2]
[320074316,1711138233634,-508.22981875,0.00024657,2]
[320074318,1711138233643,-500.0,0.00024657,2]
[320074320,1711138233652,-500.0,0.00024657,2]
[320074322,1711138233662,-500.0,0.00024657,2]
[320074324,1711138233671,-500.0,0.00024657,2]
[320074326,1711138233680,-500.0,0.00024657,2]
[320074328,1711138233689,-627.12549703,0.00024657,2]
[320074330,1711138233699,-500.0,0.00024657,2]
[320074332,1711138233710,-500.0,0.00024657,2]
[320074334,1711138233720,-500.0,0.00024657,2]
[320074336,1711138233729,-641.69283751,0.00024657,2]
[320074338,1711138233739,-221.21683314,0.00024657,2]
[320074340,1711138233748,-500.0,0.00024657,2]
[320074343,1711138233760,-500.0,0.00024657,2]
[320074344,1711138233769,-500.0,0.00024657,2]
[320074346,1711138233778,-500.0,0.00024657,2]
[320074348,1711138233787,-500.0,0.00024657,2]
[320074350,1711138233796,-500.0,0.00024657,2]
[320074352,1711138233805,-500.0,0.00024657,2]
[320074354,1711138233815,-500.0,0.00024657,2]
[320074357,1711138233826,-500.0,0.00024657,2]
[320074359,1711138233835,-500.0,0.00024657,2]
[320074361,1711138233844,-309.85910611,0.00024657,2]
[320074363,1711138233853,-500.0,0.00024657,2]
[320074364,1711138233863,-500.0,0.00024657,2]
[320074366,1711138233872,-500.0,0.00024657,2]
[320074368,1711138233881,-166.34391731,0.00024657,2]
[320074370,1711138233890,-500.0,0.00024657,2]
[320074372,1711138233899,-500.0,0.00024657,2]
[320074374,1711138233909,-500.0,0.00024657,2]
[320074376,1711138233918,-500.0,0.00024657,2]
[320074378,1711138233929,-500.0,0.00024657,2]
[320074380,1711138233938,-500.0,0.00024657,2]
[320074382,1711138233947,-500.0,0.00024657,2]
[320074384,1711138233957,-500.0,0.00024657,2]
[320074386,1711138233965,-500.37354689,0.00024657,2]
[320074388,1711138233974,-500.0,0.00024657,2]
[320074390,1711138233984,-500.0,0.00024657,2]
[320074392,1711138233993,-719.98,0.00024657,2]
[320074394,1711138234003,-500.0,0.00024657,2]
[320074396,1711138234013,-500.0,0.00024657,2]
[320074398,1711138234022,-500.0,0.00024657,2]
[320074400,1711138234031,-500.0,0.00024657,2]
[320074402,1711138234041,-500.0,0.00024657,2]
[320074404,1711138234050,-570.85928019,0.00024657,2]
[320074406,1711138234059,-500.0,0.00024657,2]
[320074408,1711138234068,-500.0,0.00024657,2]
[320074410,1711138234077,-500.0,0.00024657,2]
[320074412,1711138234086,-500.0,0.00024657,2]
[320074414,1711138234096,-500.0,0.00024657,2]
[320074416,1711138234104,-500.0,0.00024657,2]
[320074417,1711138234118,-427.49478328,0.00024657,2]
[320074418,1711138234127,-1446.03,0.00024657,2]
[320074419,1711138234136,-503.01453332,0.00024657,2]
[320074420,1711138234146,-500.0,0.00024657,2]
[320074421,1711138234155,-500.0,0.00024657,2]
[320074422,1711138234164,-947.68,0.00024657,2]
[320074423,1711138234173,-294.47,0.00024657,2]
[320074424,1711138234183,-500.0,0.00024657,2]
[320074425,1711138234192,-501.85256439,0.00024657,2]
[320074426,1711138234201,-359.91240088,0.00024657,2]
[320074427,1711138234211,-1563.51,0.00024657,2]
[320074428,1711138234221,-500.0,0.00024657,2]
[320074429,1711138234231,-500.0,0.00024657,2]
[320074430,1711138234241,-527.71,0.00024657,2]
[320074431,1711138234251,-500.0,0.00024657,2]
[320074432,1711138234261,-500.0,0.00024657,2]
[320074433,1711138234271,-500.0,0.00024657,2]
[320074434,1711138234281,-500.0,0.00024657,2]
[320074435,1711138234291,-500.0,0.00024657,2]
[320074436,1711138234300,-500.0,0.00024657,2]
[320074437,1711138234312,-500.0,0.00024657,2]
[320074438,1711138234323,-500.0,0.00024657,2]
[320074439,1711138234332,-500.0,0.00024657,2]
[320074440,1711138234341,-500.0,0.00024657,2]
[320074441,1711138234351,-500.0,0.00024657,2]
[320074442,1711138234360,-500.62140895,0.00024657,2]
[320074443,1711138234370,-500.0,0.00024657,2]
[320074444,1711138234379,-609.08,0.00024657,2]
[320074445,1711138234389,-724.01,0.00024657,2]
[320074446,1711138234398,-500.0,0.00024657,2]
[320074447,1711138234408,-500.0,0.00024657,2]
[320074448,1711138234417,-500.0,0.00024657,2]
[320074449,1711138234427,-1641.17,0.00024657,2]
[320074450,1711138234436,-500.0,0.00024657,2]
[320074451,1711138234446,-500.0,0.00024657,2]
[320074452,1711138234455,-500.0,0.00024657,2]
[320074453,1711138234466,-500.0,0.00024657,2]
[320074454,1711138234475,-500.0,0.00024657,2]
[320074455,1711138234484,-500.0,0.00024657,2]
[320074456,1711138234493,-763.96,0.00024657,2]
[320074457,1711138234502,-500.0,0.00024657,2]
[320074458,1711138234513,-500.0,0.00024657,2]
[320074459,1711138234522,-500.0,0.00024657,2]
[320074460,1711138234531,-500.0,0.00024657,2]
[320074461,1711138234540,-626.60944168,0.00024657,2]
[320074462,1711138234549,-500.0,0.00024657,2]
[320074463,1711138234558,-500.0,0.00024657,2]
[320074464,1711138234567,-500.0,0.00024657,2]
[320074465,1711138234577,-1134.45,0.00024657,2]
[320074466,1711138234586,-500.0,0.00024657,2]
[320074467,1711138234595,-500.0,0.00024657,2]
[320074468,1711138234604,-155.47423784,0.00024657,2]
[320074469,1711138234617,-500.0,0.00024657,2]
[320074470,1711138234627,-500.0,0.00024657,2]
[320074471,1711138234636,-785.99,0.00024657,2]
[320074472,1711138234645,-603.58,0.00024657,2]
[320074473,1711138234655,-500.0,0.00024657,2]
[320074474,1711138234664,-536.42,0.00024657,2]
[320074475,1711138234673,-500.0,0.00024657,2]
[320074476,1711138234683,-232.51884084,0.00024657,2]
[320074477,1711138234693,-1120.54,0.00024657,2]
[320074478,1711138234703,-500.0,0.00024657,2]
[320074479,1711138234712,-500.0,0.00024657,2]
[320074480,1711138234721,-500.0,0.00024657,2]
[320074481,1711138234731,-500.0,0.00024657,2]
[320074482,1711138234741,-500.0,0.00024657,2]
[320074483,1711138234751,-500.0,0.00024657,2]
[320074484,1711138234760,-2653.05,0.00024657,2]
[320074485,1711138234770,-500.0,0.00024657,2]
[320074486,1711138234780,-500.0,0.00024657,2]
[320074487,1711138234790,-500.0,0.00024657,2]
[320074488,1711138234799,-500.0,0.00024657,2]
[320074489,1711138234809,-500.0,0.00024657,2]
[320074490,1711138234819,-500.0,0.00024657,2]
[320074491,1711138234829,-500.0,0.00024657,2]
[320074492,1711138234838,-500.0,0.00024657,2]
[320074493,1711138234848,-500.0,0.00024657,2]
[320074494,1711138234858,-500.0,0.00024657,2]
[320074495,1711138234869,-500.0,0.00024657,2]
[320074496,1711138234878,-500.0,0.00024657,2]
[320074497,1711138234888,-500.0,0.00024657,2]
[320074498,1711138234898,-500.0,0.00024657,2]
[320074499,1711138234907,-500.0,0.00024657,2]
[320074500,1711138234916,-500.0,0.00024657,2]
[320074501,1711138234927,-500.0,0.00024657,2]
[320074502,1711138234937,-500.0,0.00024657,2]
[320074503,1711138234947,-500.0,0.00024657,2]
[320074504,1711138234958,-500.0,0.00024657,2]
[320074505,1711138234968,-500.0,0.00024657,2]
[320074506,1711138234978,-500.0,0.00024657,2]
[320074507,1711138234989,-500.0,0.00024657,2]
[320074508,1711138234999,-500.0,0.00024657,2]
[320074509,1711138235010,-500.0,0.00024657,2]
[320074510,1711138235020,-500.0,0.00024657,2]
[320074511,1711138235030,-500.0,0.00024657,2]
[320074512,1711138235041,-500.0,0.00024657,2]
[320074513,1711138235050,-500.0,0.00024657,2]
[320074514,1711138235060,-500.0,0.00024657,2]
[320074515,1711138235071,-500.0,0.00024657,2]
[320074516,1711138235081,-500.0,0.00024657,2]
[320074517,1711138235091,-500.0,0.00024657,2]
[320074518,1711138235102,-502.34938608,0.00024657,2]
[320074519,1711138235114,-500.0,0.00024657,2]
[320074520,1711138235125,-500.0,0.00024657,2]
[320074521,1711138235135,-500.0,0.00024657,2]
[320074522,1711138235144,-500.0,0.00024657,2]
[320074523,1711138235155,-500.0,0.00024657,2]
[320074524,1711138235165,-500.0,0.00024657,2]
[320074525,1711138235176,-500.0,0.00024657,2]
[320074526,1711138235187,-500.0,0.00024657,2]
[320074527,1711138235197,-500.0,0.00024657,2]
[320074528,1711138235209,-500.0,0.00024657,2]
[320074529,1711138235220,-500.0,0.00024657,2]
[320074530,1711138235231,-500.0,0.00024657,2]
[320074531,1711138235242,-500.0,0.00024657,2]
[320074532,1711138235252,-500.0,0.00024657,2]
[320074533,1711138235263,-500.0,0.00024657,2]
[320074534,1711138235274,-500.0,0.00024657,2]
[320074535,1711138235285,-500.0,0.00024657,2]
[320074536,1711138235295,-500.0,0.00024657,2]
[320074537,1711138235305,-500.0,0.00024657,2]
[320074538,1711138235323,-1336.21,0.00024657,2]
[320074539,1711138235334,-500.0,0.00024657,2]
[320074540,1711138235344,-500.0,0.00024657,2]
[320074541,1711138235355,-500.0,0.00024657,2]
[320074542,1711138235370,-500.0,0.00024657,2]
[320074543,1711138235380,-500.0,0.00024657,2]
[320074544,1711138235390,-500.0,0.00024657,2]
[320074545,1711138235511,-500.0,0.00024657,2]
[320074546,1711138235523,-500.0,0.00024657,2]
[320074547,1711138235534,-500.0,0.00024657,2]
[320074548,1711138235544,-1000.0,0.00024657,2]
[320074549,1711138235555,-500.0,0.00024657,2]
[320074550,1711138235565,-500.0,0.00024657,2]
[320074551,1711138235576,-500.0,0.00024657,2]
[320074552,1711138235586,-500.0,0.00024657,2]
[320074553,1711138235597,-500.0,0.00024657,2]
[320074554,1711138235607,-500.0,0.00024657,2]
[320074555,1711138235620,-500.0,0.00024657,2]
[320074556,1711138235630,-500.0,0.00024657,2]
[320074557,1711138235641,-500.0,0.00024657,2]
[320074558,1711138235651,-500.0,0.00024657,2]
[320074559,1711138235661,-500.0,0.00024657,2]
[320074560,1711138235671,-500.0,0.00024657,2]
[320074561,1711138235681,-500.0,0.00024657,2]
[320074562,1711138235691,-500.0,0.00024657,2]
[320074563,1711138235702,-2465.47,0.00024657,2]
[320074564,1711138235712,-518.46,0.00024657,2]
[320074565,1711138235723,-500.0,0.00024657,2]
[320074566,1711138235733,-500.0,0.00024657,2]
[320074567,1711138235743,-500.0,0.00024657,2]
[320074568,1711138235753,-500.0,0.00024657,2]
[320074569,1711138235763,-25002.29,0.00024657,2]
[320074570,1711138235774,-565.56,0.00024657,2]
[320074571,1711138235784,-1065.06,0.00024657,2]
[320074572,1711138235794,-1680.12,0.00024657,2]
[320074573,1711138235804,-626.97051343,0.00024657,2]
[320074574,1711138235813,-500.0,0.00024657,2]
[320074575,1711138235823,-3025.63,0.00024657,2]
[320074576,1711138235833,-500.0,0.00024657,2]
[320074577,1711138235843,-629.56,0.00024657,2]
[320074578,1711138235853,-500.0,0.00024657,2]
[320074579,1711138235864,-500.0,0.00024657,2]
[320074580,1711138235873,-500.0,0.00024657,2]
[320074581,1711138235883,-1560.4,0.00024657,2]
[320074582,1711138235893,-1483.94,0.00024657,2]
[320074583,1711138235902,-500.0,0.00024657,2]
[320074584,1711138235912,-16156.79,0.00024657,2]
[320074585,1711138235922,-1738.51,0.00024657,2]